Workbook

Sheet Notes & Usage
F3: Air to Air Heat Pump Performance Estimate Calculator

Sheet Input
B2: Air to Air Heat Pump System Performance Estimate - Input
B3: Proposed system
B4: Heat pump type (select one): | C4: Air to Air Heat Pump
B5: What is the purpose of the proposed system? | C5: Space heat and hot water
B6: What is the volume of the proposed cylinder? | E6: 200 | F6: litres
B7: What is the system pasteurisation strategy? | C7: To be provided daily by immersion
B8: Pasteurisation cycles by immersion | E8: =IF(OR(Input!C7 = "To be provided by the heat pump",Input!C7="N/A - Space heating system only"),0, IF(Input!C7 = "To be provided daily by immersion", 365, IF(Input!C7 = "To be provided weekly by immersion", 52, "Invalid input"))) -> 365 | F8: per year
B9: Property details (from valid EPC)
B10: Space Heating Demand (Q) | E10: 15500 | F10: kWh/year
B11: Demand to be supplied by the heat pump | E11: 15500 | F11: kWh/year
B12: Energy required for domestic hot water (W) | E12: 2900 | F12: kWh/year
B13: Demand to be supplied by the heat pump | E13: 2900 | F13: kWh/year
B14: Postcode prefix | E14: BS
B15: Total property floorspace (not property footprint) | E15: 145 | F15: m²
B16: Climate data
B17: Degree days (D) | E17: =VLOOKUP(E$14,'Climate & Other Lookups'!B$3:D$126,3,0) -> 1835 | F17: per year
B18: Outdoor Low Temperature (d₀) | E18: =VLOOKUP(E$14,'Climate & Other Lookups'!B$3:D$126,2,0) -> -3.1 | F18: oC
B19: Heat Loss calculations
B20: Property Specific Heat Loss (Pspecific) | E20: =(1000*E10)/(24*E17) -> 351.9527702 | F20: W/K
B21: Total Heat Loss (Pt) | E21: =E20*(21-E18) -> 8482.061762 | F21: W
B22: Specific Heat Loss | E22: =E21/E15 -> 58.49697767 | F22: W/m²
B23: Heat Pump calculations
B24: Indicative Heat Pump Capacity (Subject to full Heat Loss Calculation) | E24: =E21/1000 -> 8.482061762 | F24: kW
B25: Looked-up Seasonal Performance Factor | E25: =IF(C5="Hot water only",1.9,4.1) -> 4.1
B26: Heat Pump System Performance
B27: Annual electricity consumption (space) | E27: =IF(C5="Hot water only",0,E11/E25) -> 3780.487805 | F27: kWh/year
B28: Annual electricity consumption (water) | E28: =E13/1.9 -> 1526.315789 | F28: kWh/year
B29: Annual electricity consumption (immersion) | E29: =E6*E8*10*4200/3600000 -> 851.6666667 | F29: kWh/year
B30: Total calculated electricity consumption of the heat pump | E30: =SUM(E27:E29) -> 6158.470261 | F30: kWh/year
B31: Totals High / Low
B32: Total annual energy consumption (high) | E32: =E30*1.1 -> 6774.317287 | F32: kWh/year
B33: Total annual energy consumption (low) | E33: =E30*0.9 -> 5542.623235 | F33: kWh/year

Sheet Output
B2: Air to Air Heat Pump System Performance Estimate - Output
B3: Your energy requirements
B4: Energy required for space heating | E4: =IF(OR(D15="Space heating only", D15="Space heat and hot water"), Input!E10, "N/a - Hot water only") -> 15500 | F4: kWh
B5: Demand to be supplied by the heat pump | E5: =IF(OR(D15="Space heating only", D15="Space heat and hot water"), Input!E11, "N/a - Hot water only") -> 15500 | F5: kWh
B6: Energy required for hot water | E6: =IF(OR($D$15="Hot water only", $D$15="Space heat and hot water"), Input!E12, "N/a - Space heating only") -> 2900 | F6: kWh
B7: Demand to be supplied by the heat pump | E7: =IF(OR($D$15="Hot water only", $D$15="Space heat and hot water"), Input!E13, "N/a - Space heating only") -> 2900 | F7: kWh
B8: Your property
B9: Your postcode prefix | E9: =Input!E14 -> BS
B10: Total property floorspace (not property footprint) | E10: =IF(OR(D15="Space heating only", D15="Space heat and hot water"), Input!E15, "N/a - Hot water only") -> 145 | F10: m²
B11: Average watts per square metre Note: W/m² is a measure of your property's thermal efficiency. 0-30W/m² is very low heat loss and 120-150W/m² is very high heat loss. | E11: =IF(OR(D15="Space heating only", D15="Space heat and hot water"), Input!E22, "N/a - Hot water only") -> 58.49697767 | F11: W/m²
B12: Proposed system
B13: Heat pump capacity Note: unless a full heat loss calculation has been undertaken, this figure is indicative only and may change. | E13: =IF(OR(D15="Space heating only", D15="Space heat and hot water"), Input!E24, "N/a - Hot water only") -> 8.482061762 | F13: kW
B14: Heat pump type | D14: =VLOOKUP(Input!C4,'SPF Lookups'!G3:H6,2,FALSE) -> AAHP
B15: Your system is proposed to provide | D15: =Input!C5 -> Space heat and hot water
B16: Performance
B17: The Seasonal Performance Factor is calculated to be: | E17: =Input!E25 -> 4.1
B18: Estimate of energy consumption of the proposed heat pump Note: you can convert these figures to approximate running costs. | C18: High estimate | E18: Low estimate
C19: =Input!E32 -> 6774.317287 | D19: kWh | E19: =Input!E33 -> 5542.623235 | F19: kWh
B20: Important Note: This is not a detailed system design. It offers a reasonable estimate of likely performance and a description of the likely design. Details may change after the heat loss survey and design / this estimate is based on a full heat loss survey and design (delete as appropriate).

Sheet Climate & Other Lookups
B2: Postcode | C2: Design outdoor low temperature | D2: Degree days per year
B3: AB | C3: -5.4 | D3: 2668
B4: AL | C4: -3 | D4: 2033
B5: B | C5: -5.1 | D5: 2425
B6: BA | C6: -4.6 | D6: 1835
B7: BB | C7: -4.5 | D7: 2228
B8: BD | C8: -3.3 | D8: 2307
B9: BH | C9: -4.8 | D9: 2224
B10: BL | C10: -4.5 | D10: 2228
B11: BN | C11: -4.8 | D11: 2224
B12: BR | C12: -3 | D12: 2255
B13: BS | C13: -3.1 | D13: 1835
B14: BT | C14: -3.2 | D14: 2360
B15: CA | C15: -3.7 | D15: 2388
B16: CB | C16: -3 | D16: 2033
B17: CF | C17: -3.1 | D17: 1835
B18: CH | C18: -4.5 | D18: 2228
B19: CM | C19: -3 | D19: 2033
B20: CO | C20: -4.6 | D20: 2254
B21: CR | C21: -3 | D21: 2224
B22: CT | C22: -3 | D22: 2255
B23: CV | C23: -5.1 | D23: 2425
B24: CW | C24: -4.5 | D24: 2228
B25: DA | C25: -3 | D25: 2255
B26: DD | C26: -5.4 | D26: 2577
B27: DE | C27: -3.9 | D27: 2228
B28: DG | C28: -5.6 | D28: 2483
B29: DH | C29: -3.7 | D29: 2370
B30: DL | C30: -3.7 | D30: 2388
B31: DN | C31: -3.3 | D31: 2307
B32: DT | C32: -4.8 | D32: 2224
B33: DY | C33: -5.1 | D33: 2425
B34: E | C34: -3 | D34: 2033
B35: EC | C35: -3 | D35: 2033
B36: EH | C36: -5.4 | D36: 2577
B37: EN | C37: -3 | D37: 2255
B38: EX | C38: -1.5 | D38: 1858
B39: FK | C39: -5.6 | D39: 2577
B40: FY | C40: -4.5 | D40: 2388
B41: G | C41: -5.6 | D41: 2494
B42: GL | C42: -4.6 | D42: 2425
B43: GU | C43: -3 | D43: 2033
B44: GY | C44: -4.8 | D44: 1800
B45: HA | C45: -3 | D45: 2033
B46: HD | C46: -4.5 | D46: 2307
B47: HG | C47: -3.3 | D47: 2307
B48: HP | C48: -3 | D48: 2033
B49: HR | C49: -5.1 | D49: 2425
B50: HS | C50: -5.6 | D50: 1800
B51: HU | C51: -3.3 | D51: 2307
B52: HX | C52: -4.5 | D52: 2228
B53: IG | C53: -3 | D53: 2033
B54: IM | C54: -4.5 | D54: 2228
B55: IP | C55: -4.6 | D55: 2254
B56: IV | C56: -5.6 | D56: 2668
B57: JE | C57: -4.8 | D57: 1800
B58: KA | C58: -5.6 | D58: 2494
B59: KT | C59: -3 | D59: 2033
B60: KW | C60: -5.4 | D60: 2668
B61: KY | C61: -5.4 | D61: 2577
B62: L | C62: -4.5 | D62: 2228
B63: LA | C63: -4.5 | D63: 2388
B64: LD | C64: -3.1 | D64: 2161
B65: LE | C65: -3.9 | D65: 2425
B66: LL | C66: -4.5 | D66: 2228
B67: LN | C67: -3.9 | D67: 2307
B68: LS | C68: -3.3 | D68: 2307
B69: LU | C69: -3 | D69: 2033
B70: M | C70: -4.5 | D70: 2228
B71: ME | C71: -3 | D71: 2033
B72: MK | C72: -4.6 | D72: 2425
B73: ML | C73: -5.4 | D73: 2494
B74: N | C74: -3 | D74: 2033
B75: NE | C75: -3.7 | D75: 2370
B76: NG | C76: -3.9 | D76: 2254
B77: NN | C77: -3.9 | D77: 2425
B78: NP | C78: -3.1 | D78: 2425
B79: NR | C79: -4.6 | D79: 2254
B80: NW | C80: -3 | D80: 2033
B81: OL | C81: -4.5 | D81: 2228
B82: OX | C82: -4.6 | D82: 2425
B83: PA | C83: -5.6 | D83: 2494
B84: PE | C84: -4.6 | D84: 2254
B85: PH | C85: -5.6 | D85: 2668
B86: PL | C86: -1.5 | D86: 1858
B87: PO | C87: -4.8 | D87: 2224
B88: PR | C88: -4.5 | D88: 2388
B89: RG | C89: -4.6 | D89: 2033
B90: RH | C90: -3 | D90: 2033
B91: RM | C91: -3 | D91: 2033
B92: S | C92: -3.3 | D92: 2228
B93: SA | C93: -3.1 | D93: 2161
B94: SE | C94: -3 | D94: 2033
B95: SG | C95: -3 | D95: 2033
B96: SK | C96: -4.5 | D96: 2228
B97: SL | C97: -3 | D97: 2033
B98: SM | C98: -3 | D98: 2033
B99: SN | C99: -4.6 | D99: 2425
B100: SO | C100: -4.8 | D100: 2224
B101: SP | C101: -4.8 | D101: 2224
B102: SR | C102: -3.7 | D102: 2370
B103: SS | C103: -3 | D103: 2033
B104: ST | C104: -5.1 | D104: 2228
B105: SW | C105: -3 | D105: 2033
B106: SY | C106: -5.1 | D106: 2161
B107: TA | C107: -1.5 | D107: 1835
B108: TD | C108: -5.4 | D108: 2483
B109: TF | C109: -5.1 | D109: 2425
B110: TN | C110: -3 | D110: 2255
B111: TQ | C111: -1.5 | D111: 1858
B112: TR | C112: -1.5 | D112: 1858
B113: TS | C113: -3.7 | D113: 2370
B114: TW | C114: -3 | D114: 2203
B115: UB | C115: -3 | D115: 2203
B116: W | C116: -3 | D116: 2203
B117: WA | C117: -4.5 | D117: 2228
B118: WC | C118: -3 | D118: 2203
B119: WD | C119: -3 | D119: 2203
B120: WF | C120: -3.3 | D120: 2307
B121: WN | C121: -4.5 | D121: 2228
B122: WR | C122: -5.1 | D122: 2425
B123: WS | C123: -5.1 | D123: 2425
B124: WV | C124: -5.1 | D124: 2425
B125: YO | C125: -3.3 | D125: 2307
B126: ZE | C126: -5.4 | D126: 2668

Sheet SPF Lookups
G2: Heat pump type | H2: Abbreviation | I2: Providing | J2: SPF calculation
G3: Air to Air Heat Pump | H3: AAHP | I3: Space Heating | J3: 4.1
G4: Air to Air Heat Pump | H4: AAHP | I4: DHW | J4: 1.9

Sheet Version
B2: Amendments since publication
B4: Date | C4: Version | D4: Notes
B5: XX/XX/2025 | C5: 1 | D5: First issue.
